[Event "Mistrovství Čech mládeže 2023 - HD14"]
[Site "Harrachov, Czech Republic"]
[Date "2023.10.22"]
[Round "2.5"]
[White "Švadlenka, Dominik"]
[Black "Kravchenko, Andrey"]
[Result "1/2-1/2"]
[TimeControl "90m + 30s"]
[WhiteElo "1710"]
[BlackElo "1541"]

1. d4 {[%clk 01:30:58]} d5 {[%clk 01:30:55]} {[%emt 00:00:05]} 2. c4 {[%clk
01:31:25]} {[%emt 00:00:04]} e6 {[%clk 01:31:22]} {[%emt 00:00:03]} 3. Nc3
{[%clk 01:31:51]} {[%emt 00:00:04]} Nf6 {[%clk 01:31:44]} {[%emt 00:00:07]} 4.
Bg5 {[%clk 01:32:16]} {[%emt 00:00:05]} Be7 {[%clk 01:32:07]} {[%emt 00:00:06]}
5. e3 {[%clk 01:32:41]} {[%emt 00:00:05]} h6 {[%clk 01:31:59]} {[%emt
00:00:38]} 6. Bf4 {[%clk 01:32:36]} {[%emt 00:00:35]} a6 {[%clk 01:32:00]}
{[%emt 00:00:29]} 7. cxd5 {[%clk 01:32:56]} {[%emt 00:00:11]} Nxd5 {[%clk
01:30:30]} {[%emt 00:02:00]} 8. Nxd5 {[%clk 01:32:50]} {[%emt 00:00:36]} exd5
{[%clk 01:30:54]} {[%emt 00:00:06]} 9. Ne2 {[%clk 01:32:38]} {[%emt 00:00:42]}
Nd7 {[%clk 01:29:35]} {[%emt 00:01:49]} 10. Nc3 {[%clk 01:32:14]} {[%emt
00:00:54]} Nf6 {[%clk 01:29:37]} {[%emt 00:00:28]} 11. Bd3 {[%clk 01:32:05]}
{[%emt 00:00:39]} O-O {[%clk 01:29:09]} {[%emt 00:00:59]} 12. O-O {[%clk
01:32:25]} {[%emt 00:00:10]} c6 {[%clk 01:27:19]} {[%emt 00:02:20]} 13. Bg3
{[%clk 01:29:37]} {[%emt 00:03:18]} Bd6 {[%clk 01:25:17]} {[%emt 00:02:32]} 14.
Qc2 {[%clk 01:26:17]} {[%emt 00:03:52]} Bxg3 {[%clk 01:21:49]} {[%emt
00:03:58]} 15. hxg3 {[%clk 01:25:46]} {[%emt 00:01:01]} Re8 {[%clk 01:21:20]}
{[%emt 00:00:58]} 16. b4 {[%clk 01:23:58]} {[%emt 00:02:18]} Be6 {[%clk
01:13:15]} {[%emt 00:08:35]} 17. Na4 {[%clk 01:21:34]} {[%emt 00:02:54]} Nd7
{[%clk 01:09:13]} {[%emt 00:04:31]} 18. Nc5 {[%clk 01:21:09]} {[%emt 00:00:56]}
Nxc5 {[%clk 01:09:24]} {[%emt 00:00:20]} 19. bxc5 {[%clk 01:21:33]} {[%emt
00:00:07]} b5 {[%clk 00:52:57]} {[%emt 00:16:56]} 20. cxb6 {[%clk 01:21:08]}
{[%emt 00:00:55]} Qxb6 {[%clk 00:53:13]} {[%emt 00:00:13]} 21. Rab1 {[%clk
01:20:34]} {[%emt 00:01:04]} Qc7 {[%clk 00:53:21]} {[%emt 00:00:21]} 22. Rfc1
{[%clk 01:20:05]} {[%emt 00:01:00]} Rec8 {[%clk 00:51:54]} {[%emt 00:01:56]} 23.
Qa4 {[%clk 01:19:20]} {[%emt 00:01:16]} a5 {[%clk 00:49:24]} {[%emt 00:03:00]}
24. Rc5 {[%clk 01:16:20]} {[%emt 00:03:30]} Bd7 {[%clk 00:45:22]} {[%emt
00:04:31]} 25. Qa3 {[%clk 01:03:53]} {[%emt 00:12:59]} Qa7 {[%clk 00:38:03]}
{[%emt 00:07:48]} 26. Bc2 {[%clk 01:00:42]} {[%emt 00:03:42]} Qa6 {[%clk
00:33:03]} {[%emt 00:05:29]} 27. Qd3 {[%clk 00:57:57]} {[%emt 00:03:16]} Qxd3
{[%clk 00:32:56]} {[%emt 00:00:36]} 28. Bxd3 {[%clk 00:58:23]} {[%emt
00:00:05]} Ra7 {[%clk 00:27:54]} {[%emt 00:05:32]} 29. Rb6 {[%clk 00:57:22]}
{[%emt 00:01:31]} Rca8 {[%clk 00:27:05]} {[%emt 00:01:18]} 30. e4 {[%clk
00:44:46]} {[%emt 00:13:07]} dxe4 {[%clk 00:26:02]} {[%emt 00:01:33]} 31. Bxe4
{[%clk 00:45:06]} {[%emt 00:00:10]} Rd8 {[%clk 00:25:17]} {[%emt 00:01:13]} 32.
Rc4 {[%clk 00:38:47]} {[%emt 00:06:51]} Be6 {[%clk 00:21:48]} {[%emt 00:03:57]}
33. Ra4 {[%clk 00:38:33]} {[%emt 00:00:46]} Rad7 {[%clk 00:18:29]} {[%emt
00:03:47]} 34. Rxa5 {[%clk 00:34:49]} {[%emt 00:04:17]} Rxd4 {[%clk 00:18:43]}
{[%emt 00:00:16]} 35. Bxc6 {[%clk 00:34:41]} {[%emt 00:00:37]} Rd1+ {[%clk
00:18:38]} {[%emt 00:00:34]} 36. Kh2 {[%clk 00:34:47]} {[%emt 00:00:25]} R1d2
{[%clk 00:18:54]} {[%emt 00:00:14]} 37. a4 {[%clk 00:33:09]} {[%emt 00:02:09]}
Rxf2 {[%clk 00:18:42]} {[%emt 00:00:42]} 38. Rc5 {[%clk 00:30:46]} {[%emt
00:02:53]} Rfd2 {[%clk 00:18:15]} {[%emt 00:00:56]} 39. Rbb5 {[%clk 00:23:06]}
{[%emt 00:08:11]} Bd7 {[%clk 00:17:55]} {[%emt 00:00:47]} 40. a5 {[%clk
00:19:11]} {[%emt 00:04:28]} Bxc6 {[%clk 00:18:11]} {[%emt 00:00:14]} 41. Rxc6
{[%clk 00:19:36]} {[%emt 00:00:05]} Ra2 {[%clk 00:18:26]} {[%emt 00:00:13]} 42.
Ra6 {[%clk 00:15:19]} {[%emt 00:04:48]} Rdd2 {[%clk 00:18:00]} {[%emt
00:00:56]} 43. Ra8+ {[%clk 00:14:25]} {[%emt 00:01:25]} Kh7 {[%clk 00:18:21]}
{[%emt 00:00:08]} 44. a6 {[%clk 00:14:30]} {[%emt 00:00:26]} Rxg2+ {[%clk
00:18:05]} {[%emt 00:00:45]} 45. Kh3 {[%clk 00:14:32]} {[%emt 00:00:28]} Rh2+
{[%clk 00:18:21]} {[%emt 00:00:13]} 46. Kg4 {[%clk 00:14:58]} {[%emt 00:00:05]}
Ra4+ {[%clk 00:15:22]} {[%emt 00:03:29]} 47. Kf3 {[%clk 00:15:23]} {[%emt
00:00:05]} Ra3+ {[%clk 00:14:10]} {[%emt 00:01:41]} 48. Kf4 {[%clk 00:14:48]}
{[%emt 00:01:05]} Rf2+ {[%clk 00:13:01]} {[%emt 00:01:39]} 49. Ke5 {[%clk
00:12:52]} {[%emt 00:02:27]} Rfa2 {[%clk 00:11:35]} {[%emt 00:01:56]} 50. Rb6
{[%clk 00:12:48]} {[%emt 00:00:35]} Rxg3 {[%clk 00:11:12]} {[%emt 00:00:52]} 51.
a7 {[%clk 00:12:06]} {[%emt 00:01:11]} Rg5+ {[%clk 00:11:15]} {[%emt 00:00:26]}
52. Kd6 {[%clk 00:12:01]} {[%emt 00:00:36]} Rg6+ {[%clk 00:10:02]} {[%emt
00:01:42]} 53. Kc7 {[%clk 00:12:24]} {[%emt 00:00:07]} Rxb6 {[%clk 00:09:27]}
{[%emt 00:01:06]} 54. Kxb6 {[%clk 00:12:48]} {[%emt 00:00:06]} Rb2+ {[%clk
00:09:43]} {[%emt 00:00:14]} 55. Kc5 {[%clk 00:12:52]} {[%emt 00:00:26]} Rc2+
{[%clk 00:09:45]} {[%emt 00:00:28]} 56. Kb6 {[%clk 00:12:50]} {[%emt 00:00:32]}
1/2-1/2

[Event "Mistrovství Čech mládeže 2023 - HD14"]
[Site "Harrachov, Czech Republic"]
[Date "2023.10.22"]
[Round "2.6"]
[White "Pogorelskiy, Boris"]
[Black "Krautschneider, Daniel Jan"]
[Result "0-1"]
[TimeControl "90m + 30s"]
[WhiteElo "1541"]
[BlackElo "1669"]

1. e4 {[%clk 01:30:56]} {[%emt 00:00:02]} c5 {[%clk 01:30:49]} {[%emt
00:00:12]} 2. Nf3 {[%clk 01:31:20]} {[%emt 00:00:06]} Nc6 {[%clk 01:31:14]}
{[%emt 00:00:06]} 3. d4 {[%clk 01:31:35]} {[%emt 00:00:14]} cxd4 {[%clk
01:31:38]} {[%emt 00:00:06]} 4. Nxd4 {[%clk 01:32:02]} {[%emt 00:00:03]} g6
{[%clk 01:32:00]} {[%emt 00:00:08]} 5. c4 {[%clk 01:32:05]} {[%emt 00:00:27]}
Bg7 {[%clk 01:32:14]} {[%emt 00:00:16]} 6. Be3 {[%clk 01:32:29]} {[%emt
00:00:06]} Qb6 {[%clk 01:32:35]} {[%emt 00:00:09]} 7. Nb3 {[%clk 01:32:46]}
{[%emt 00:00:13]} Qc7 {[%clk 01:32:57]} {[%emt 00:00:08]} 8. Nd4 {[%clk
01:30:51]} {[%emt 00:02:25]} Qb6 {[%clk 01:31:52]} {[%emt 00:01:35]} 9. Nb3
{[%clk 01:31:05]} {[%emt 00:00:17]} Qc7 {[%clk 01:32:15]} {[%emt 00:00:08]} 10.
Nd4 {[%clk 01:31:18]} {[%emt 00:00:16]} Nf6 {[%clk 01:26:25]} {[%emt 00:06:19]}
11. Nc3 {[%clk 01:31:00]} {[%emt 00:00:48]} Qa5 {[%clk 01:25:36]} {[%emt
00:01:19]} 12. Nb3 {[%clk 01:30:02]} {[%emt 00:01:28]} Qd8 {[%clk 01:25:24]}
{[%emt 00:00:41]} 13. Nd4 {[%clk 01:28:36]} {[%emt 00:01:56]} O-O {[%clk
01:25:11]} {[%emt 00:00:43]} 14. Be2 {[%clk 01:28:50]} {[%emt 00:00:16]} d6
{[%clk 01:25:13]} {[%emt 00:00:28]} 15. f3 {[%clk 01:28:45]} {[%emt 00:00:36]}
a6 {[%clk 01:23:42]} {[%emt 00:02:01]} 16. O-O {[%clk 01:28:44]} {[%emt
00:00:30]} Bd7 {[%clk 01:23:33]} {[%emt 00:00:40]} 17. Qd2 {[%clk 01:28:14]}
{[%emt 00:01:00]} Qa5 {[%clk 01:23:16]} {[%emt 00:00:46]} 18. Rac1 {[%clk
01:25:45]} {[%emt 00:02:59]} b5 {[%clk 01:12:14]} {[%emt 00:11:31]} 19. Nb3
{[%clk 01:25:12]} {[%emt 00:01:03]} Qd8 {[%clk 01:09:44]} {[%emt 00:03:01]} 20.
cxb5 {[%clk 01:24:45]} {[%emt 00:00:57]} axb5 {[%clk 01:09:45]} {[%emt
00:00:29]} 21. Bxb5 {[%clk 01:24:30]} {[%emt 00:00:44]} Ne5 {[%clk 01:05:10]}
{[%emt 00:05:05]} 22. Bxd7 {[%clk 01:23:21]} {[%emt 00:01:39]} Nc4 {[%clk
01:05:11]} {[%emt 00:00:29]} 23. Qe2 {[%clk 01:23:27]} {[%emt 00:00:24]} Nxe3
{[%clk 01:05:20]} {[%emt 00:00:21]} 24. Qxe3 {[%clk 01:23:50]} {[%emt
00:00:07]} Nxd7 {[%clk 01:05:39]} {[%emt 00:00:11]} 25. Ra1 {[%clk 01:19:49]}
{[%emt 00:04:31]} Nb6 {[%clk 01:05:13]} {[%emt 00:00:57]} 26. Nd2 {[%clk
01:17:33]} {[%emt 00:02:46]} Na4 {[%clk 01:04:23]} {[%emt 00:01:19]} 27. Nxa4
{[%clk 01:16:56]} {[%emt 00:01:07]} Rxa4 {[%clk 01:04:46]} {[%emt 00:00:07]} 28.
Qb3 {[%clk 01:14:27]} {[%emt 00:02:59]} Qa8 {[%clk 01:03:36]} {[%emt 00:01:40]}
29. Qc2 {[%clk 00:35:20]} {[%emt 00:39:36]} Rxa2 {[%clk 01:00:42]} {[%emt
00:03:23]} 30. Rxa2 {[%clk 00:35:24]} {[%emt 00:00:26]} Qxa2 {[%clk 01:00:55]}
{[%emt 00:00:18]} 31. Rc1 {[%clk 00:33:41]} {[%emt 00:02:13]} Qxb2 {[%clk
01:01:05]} {[%emt 00:00:20]} 32. Qxb2 {[%clk 00:34:00]} {[%emt 00:00:11]} Bxb2
{[%clk 01:01:29]} {[%emt 00:00:06]} 33. Rc7 {[%clk 00:34:26]} {[%emt 00:00:03]}
Bf6 {[%clk 01:01:29]} {[%emt 00:00:30]} 34. Nc4 {[%clk 00:34:18]} {[%emt
00:00:38]} Rd8 {[%clk 01:01:39]} {[%emt 00:00:20]} 35. Na5 {[%clk 00:34:05]}
{[%emt 00:00:44]} Bd4+ {[%clk 01:01:51]} {[%emt 00:00:17]} 0-1

[Event "Mistrovství Čech mládeže 2023 - HD14"]
[Site "Harrachov, Czech Republic"]
[Date "2023.10.22"]
[Round "2.7"]
[White "Bělaška, Václav"]
[Black "Chon, Jeremy"]
[Result "1/2-1/2"]
[TimeControl "90m + 30s"]
[WhiteElo "1666"]
[BlackElo "1538"]

1. e4 {[%clk 01:30:58]} c5 {[%clk 01:31:00]} {[%emt 00:00:01]} 2. Nf3 {[%clk
01:31:03]} {[%emt 00:00:25]} g6 {[%emt 00:00:02]} 3. d4 {[%clk 01:30:30]}
{[%emt 00:01:01]} cxd4 {[%clk 01:31:58]} {[%emt 00:00:02]} 4. Qxd4 {[%clk
01:30:53]} {[%emt 00:00:06]} Nf6 {[%clk 01:32:25]} {[%emt 00:00:03]} 5. e5
{[%clk 01:31:17]} {[%emt 00:00:06]} Nc6 {[%clk 01:32:54]} {[%emt 00:00:01]} 6.
Qa4 {[%clk 01:31:32]} {[%emt 00:00:16]} Nd5 {[%clk 01:33:17]} {[%emt 00:00:08]}
7. Qe4 {[%clk 01:31:40]} {[%emt 00:00:21]} Nc7 {[%clk 01:33:42]} {[%emt
00:00:05]} 8. Nc3 {[%clk 01:32:06]} {[%emt 00:00:05]} Bg7 {[%clk 01:34:04]}
{[%emt 00:00:08]} 9. Bf4 {[%clk 01:31:57]} {[%emt 00:00:39]} Ne6 {[%clk
01:34:04]} {[%emt 00:00:31]} 10. Bg3 {[%clk 01:32:23]} {[%emt 00:00:03]} Qa5
{[%clk 01:29:33]} {[%emt 00:05:01]} 11. h4 {[%clk 01:29:54]} {[%emt 00:02:58]}
h5 {[%clk 01:23:33]} {[%emt 00:06:31]} 12. Bc4 {[%clk 01:25:11]} {[%emt
00:05:13]} a6 {[%clk 01:17:18]} {[%emt 00:06:45]} 13. O-O-O {[%clk 01:19:23]}
{[%emt 00:06:18]} O-O {[%clk 01:08:22]} {[%emt 00:09:26]} 14. Bd5 {[%clk
01:07:05]} {[%emt 00:12:47]} Rb8 {[%clk 00:53:55]} {[%emt 00:14:57]} 15. Bh2
{[%clk 01:06:22]} {[%emt 00:01:13]} Qb4 {[%clk 00:32:46]} {[%emt 00:21:39]} 16.
Bxe6 {[%clk 00:57:09]} {[%emt 00:09:42]} dxe6 {[%clk 00:29:02]} {[%emt
00:04:15]} 17. Nd4 {[%clk 00:56:25]} {[%emt 00:01:14]} Qc5 {[%clk 00:25:27]}
{[%emt 00:04:05]} 18. g4 {[%clk 00:53:59]} {[%emt 00:02:55]} Bh6+ {[%clk
00:18:48]} {[%emt 00:07:10]} 19. Kb1 {[%clk 00:49:11]} {[%emt 00:05:18]} Nxd4
{[%clk 00:17:18]} {[%emt 00:02:00]} 20. Rxd4 {[%clk 00:48:32]} {[%emt
00:01:09]} Qc6 {[%clk 00:16:33]} {[%emt 00:01:15]} 21. Qxc6 {[%clk 00:47:02]}
{[%emt 00:02:00]} bxc6 {[%clk 00:17:02]} {[%emt 00:00:01]} 22. g5 {[%clk
00:45:43]} {[%emt 00:01:48]} Bg7 {[%clk 00:17:26]} {[%emt 00:00:07]} 23. Ne4
{[%clk 00:45:41]} {[%emt 00:00:31]} Rb5 {[%clk 00:16:30]} {[%emt 00:01:27]} 24.
c4 {[%clk 00:45:05]} {[%emt 00:01:05]} c5 {[%clk 00:14:58]} {[%emt 00:02:02]}
25. Rd2 {[%clk 00:38:44]} {[%emt 00:06:51]} Bb7 {[%clk 00:13:05]} {[%emt
00:02:23]} 26. Re1 {[%clk 00:34:29]} {[%emt 00:04:45]} Bxe4+ {[%clk 00:12:51]}
{[%emt 00:00:45]} 27. Rxe4 {[%clk 00:33:30]} {[%emt 00:01:28]} Rb7 {[%clk
00:10:38]} {[%emt 00:02:44]} 28. Re3 {[%clk 00:32:51]} {[%emt 00:01:09]} Re8
{[%clk 00:05:34]} {[%emt 00:05:34]} 29. Red3 {[%clk 00:28:45]} {[%emt
00:04:35]} f6 {[%clk 00:04:32]} {[%emt 00:01:32]} 30. Rd8 {[%clk 00:28:10]}
{[%emt 00:01:06]} Kf7 {[%clk 00:04:30]} {[%emt 00:00:32]} 31. f4 {[%emt
00:01:03]} a5 {[%clk 00:03:27]} {[%emt 00:01:29]} 32. Kc2 {[%clk 00:27:06]}
{[%emt 00:01:05]} Rb4 {[%clk 00:03:42]} {[%emt 00:00:15]} 33. Kc3 {[%clk
00:26:58]} {[%emt 00:00:38]} a4 {[%clk 00:03:27]} {[%emt 00:00:46]} 34. R2d7
{[%clk 00:24:59]} {[%emt 00:02:29]} fxe5 {[%clk 00:02:48]} {[%emt 00:01:09]} 35.
fxe5 {[%clk 00:25:25]} {[%emt 00:00:04]} a3 {[%clk 00:01:46]} {[%emt 00:01:32]}
36. b3 {[%clk 00:25:21]} {[%emt 00:00:33]} Rb6 {[%clk 00:02:06]} {[%emt
00:00:11]} 37. Rd2 {[%clk 00:24:02]} {[%emt 00:01:48]} Rxd8 {[%clk 00:02:00]}
{[%emt 00:00:37]} 38. Rxd8 {[%clk 00:24:24]} {[%emt 00:00:08]} Rd6 {[%clk
00:02:12]} {[%emt 00:00:18]} 1/2-1/2

[Event "Mistrovství Čech mládeže 2023 - HD14"]
[Site "Harrachov, Czech Republic"]
[Date "2023.10.22"]
[Round "2.8"]
[White "Bělaška, Adam"]
[Black "Křivka, Matěj"]
[Result "1/2-1/2"]
[TimeControl "90m + 30s"]
[WhiteElo "1503"]
[BlackElo "1665"]

1. e4 {[%clk 01:30:55]} {[%emt 00:00:04]} c5 {[%clk 01:30:54]} {[%emt
00:00:06]} 2. Nf3 {[%clk 01:30:50]} {[%emt 00:00:35]} e6 {[%clk 01:31:15]}
{[%emt 00:00:09]} 3. d4 {[%clk 01:31:07]} {[%emt 00:00:13]} cxd4 {[%clk
01:31:37]} {[%emt 00:00:09]} 4. Nxd4 {[%clk 01:31:28]} {[%emt 00:00:09]} Nc6
{[%clk 01:32:02]} {[%emt 00:00:05]} 5. Nc3 {[%clk 01:31:32]} {[%emt 00:00:26]}
a6 {[%clk 01:32:08]} {[%emt 00:00:24]} 6. Be3 {[%clk 01:31:42]} {[%emt
00:00:19]} Qc7 {[%clk 01:32:09]} {[%emt 00:00:29]} 7. Qd2 {[%clk 01:31:55]}
{[%emt 00:00:16]} Nf6 {[%clk 01:31:40]} {[%emt 00:01:00]} 8. O-O-O {[%clk
01:32:01]} {[%emt 00:00:24]} Bb4 {[%clk 01:31:16]} {[%emt 00:00:54]} 9. f3
{[%clk 01:31:30]} {[%emt 00:01:02]} d5 {[%clk 01:30:25]} {[%emt 00:01:21]} 10.
Bf4 {[%clk 01:14:38]} {[%emt 00:17:20]} Qa5 {[%clk 01:20:33]} {[%emt 00:10:22]}
11. Nxc6 {[%clk 01:03:26]} {[%emt 00:11:43]} bxc6 {[%clk 01:20:17]} {[%emt
00:00:47]} 12. Be5 {[%clk 01:02:50]} {[%emt 00:01:06]} Bb7 {[%clk 00:59:41]}
{[%emt 00:21:07]} 13. a3 {[%clk 01:01:12]} {[%emt 00:02:09]} Be7 {[%clk
00:58:59]} {[%emt 00:01:11]} 14. exd5 {[%clk 01:00:17]} {[%emt 00:01:25]} cxd5
{[%clk 00:58:36]} {[%emt 00:00:53]} 15. Qg5 {[%clk 00:54:28]} {[%emt 00:06:18]}
O-O {[%clk 00:54:34]} {[%emt 00:04:33]} 16. h4 {[%clk 00:53:27]} {[%emt
00:01:30]} h6 {[%clk 00:53:26]} {[%emt 00:01:40]} 17. Qd2 {[%clk 00:53:07]}
{[%emt 00:00:49]} Bc6 {[%clk 00:51:39]} {[%emt 00:02:17]} 18. Qe3 {[%clk
00:50:20]} {[%emt 00:03:16]} Bc5 {[%clk 00:48:18]} {[%emt 00:03:52]} 19. Bd4
{[%clk 00:48:09]} {[%emt 00:02:42]} Bxd4 {[%clk 00:47:27]} {[%emt 00:01:21]} 20.
Qxd4 {[%clk 00:46:20]} {[%emt 00:02:19]} Rab8 {[%clk 00:46:34]} {[%emt
00:01:23]} 21. g4 {[%clk 00:46:11]} {[%emt 00:00:38]} Qb6 {[%clk 00:46:35]}
{[%emt 00:00:29]} 22. Ne2 {[%clk 00:43:51]} {[%emt 00:02:49]} Nd7 {[%clk
00:44:22]} {[%emt 00:02:44]} 23. f4 {[%clk 00:43:18]} {[%emt 00:01:03]} Rfc8
{[%clk 00:43:19]} {[%emt 00:01:33]} 24. Qxb6 {[%clk 00:42:01]} {[%emt
00:01:47]} Nxb6 {[%clk 00:43:11]} {[%emt 00:00:38]} 25. Nd4 {[%clk 00:41:40]}
{[%emt 00:00:50]} a5 {[%clk 00:34:01]} {[%emt 00:09:41]} 26. Nxc6 {[%clk
00:39:40]} {[%emt 00:02:29]} Rxc6 {[%clk 00:32:59]} {[%emt 00:01:32]} 27. Rh3
{[%clk 00:39:20]} {[%emt 00:00:50]} Na4 {[%clk 00:30:29]} {[%emt 00:03:00]} 28.
b3 {[%clk 00:38:31]} {[%emt 00:01:19]} Nc5 {[%clk 00:30:05]} {[%emt 00:00:54]}
29. Kb2 {[%clk 00:38:05]} {[%emt 00:00:55]} Ne4 {[%clk 00:30:22]} {[%emt
00:00:13]} 30. Rd4 {[%clk 00:36:36]} {[%emt 00:01:56]} Nf2 {[%clk 00:28:46]}
{[%emt 00:02:09]} 31. Rg3 {[%clk 00:36:27]} {[%emt 00:00:38]} Rbc8 {[%clk
00:28:49]} {[%emt 00:00:28]} 32. c4 {[%clk 00:35:21]} {[%emt 00:01:36]} a4
{[%clk 00:24:48]} {[%emt 00:04:32]} 33. bxa4 {[%clk 00:33:02]} {[%emt
00:02:48]} Ne4 {[%clk 00:22:42]} {[%emt 00:02:35]} 34. Re3 {[%clk 00:29:12]}
{[%emt 00:04:19]} Nd6 {[%clk 00:21:42]} {[%emt 00:01:32]} 35. cxd5 {[%clk
00:25:19]} {[%emt 00:04:23]} exd5 {[%clk 00:21:28]} {[%emt 00:00:43]} 36. Rxd5
{[%clk 00:24:46]} {[%emt 00:01:03]} Nc4+ {[%clk 00:21:21]} {[%emt 00:00:38]} 37.
Bxc4 {[%clk 00:25:01]} {[%emt 00:00:15]} Rxc4 {[%clk 00:21:49]} {[%emt
00:00:02]} 38. Red3 {[%clk 00:24:19]} {[%emt 00:01:12]} Rxa4 {[%clk 00:21:24]}
{[%emt 00:00:55]} 39. R3d4 {[%clk 00:23:58]} {[%emt 00:00:50]} Rb8+ {[%clk
00:20:47]} {[%emt 00:01:06]} 40. Ka2 {[%clk 00:23:23]} {[%emt 00:01:06]} Raa8
{[%clk 00:21:07]} {[%emt 00:00:10]} 41. a4 {[%clk 00:22:51]} {[%emt 00:01:01]}
Kh7 {[%clk 00:20:42]} {[%emt 00:00:56]} 42. f5 {[%clk 00:22:08]} {[%emt
00:01:13]} f6 {[%clk 00:19:16]} {[%emt 00:01:56]} 43. Ka3 {[%clk 00:22:07]}
{[%emt 00:00:32]} Rb1 {[%clk 00:18:49]} {[%emt 00:00:57]} 44. Rd2 {[%clk
00:20:11]} {[%emt 00:02:23]} Ra1+ {[%clk 00:18:55]} {[%emt 00:00:26]} 45. Kb3
{[%clk 00:19:19]} {[%emt 00:01:22]} R1xa4 {[%clk 00:18:56]} {[%emt 00:00:29]}
46. R2d4 {[%clk 00:19:17]} {[%emt 00:00:31]} Ra3+ {[%clk 00:18:59]} {[%emt
00:00:27]} 47. Kc4 {[%clk 00:19:31]} {[%emt 00:00:16]} Rc8+ {[%clk 00:17:42]}
{[%emt 00:01:48]} 48. Kb4 {[%clk 00:18:49]} {[%emt 00:01:11]} Ra1 {[%clk
00:17:48]} {[%emt 00:00:25]} 49. Rd1 {[%clk 00:17:29]} {[%emt 00:01:49]} Rb8+
{[%clk 00:17:11]} {[%emt 00:01:07]} 50. Kc5 {[%clk 00:16:34]} {[%emt 00:01:26]}
Ra7 {[%clk 00:15:37]} {[%emt 00:02:03]} 51. Kd4 {[%clk 00:16:10]} {[%emt
00:00:38]} 1/2-1/2